bitfinex/quotes_BTCUSD_20220207
["timestamp","ask_amount","ask_price","bid_price","bid_amount"]
[1644212514005,0.22798731,42783.0,42777.0,0.38446021]
[1644212514207,0.22798731,42783.0,42781.0,0.006]
[1644212514410,0.22798731,42783.0,42766.0,0.15046]
[1644212514411,1.32264839,42782.0,42766.0,0.15046]
[1644212514607,1.06097339,42782.0,42766.0,0.00046]
[1644212514810,0.308475,42781.0,42766.0,0.00046]
[1644212515006,0.26711468,42773.0,42766.0,0.00046]
[1644212515207,0.06633597,42767.0,42766.0,0.00046]
[1644212516208,0.08833597,42767.0,42766.0,0.00546]
[1644212516856,0.57047702,42767.0,42766.0,0.00546]
[1644212517058,0.2894054,42767.0,42766.0,0.00546]
[1644212517455,0.06633597,42767.0,42766.0,0.00046]
[1644212518058,0.042,42767.0,42766.0,0.00346]
[1644212519259,0.12308363,42767.0,42766.0,0.00346]
[1644212519458,0.12308363,42767.0,42766.0,0.00046]
[1644212519459,0.08108363,42767.0,42766.0,0.00046]
[1644212520059,0.09508363,42767.0,42766.0,0.00846]
[1644212520362,0.014,42767.0,42766.0,0.00846]
[1644212520620,0.014,42767.0,42766.0,0.385458]
[1644212521021,0.014,42767.0,42766.0,0.435458]
[1644212521357,0.32261828,42777.0,42766.0,0.427458]
[1644212521358,0.23552902,42771.0,42766.0,0.427458]
[1644212521522,0.06659692,42772.0,42766.0,0.10046]
[1644212521720,0.06659692,42772.0,42768.0,0.05]
[1644212522119,0.08859692,42772.0,42768.0,0.05]
[1644212522319,0.08859692,42772.0,42766.0,0.00846]
[1644212522921,0.26452997,42771.0,42766.0,0.00846]
[1644212523120,0.08859692,42772.0,42766.0,0.00846]
[1644212523426,0.00060429,42774.0,42768.0,0.05]
[1644212523625,0.1941838,42777.0,42769.0,0.05]
[1644212523820,0.1941838,42777.0,42769.0,0.0968]
[1644212524023,0.00018187,42774.0,42769.0,0.0968]
[1644212524263,0.00018187,42774.0,42769.0,0.1468]
[1644212524854,0.2371838,42777.0,42769.0,0.1468]
[1644212524855,0.2371838,42777.0,42769.0,0.1968]
[1644212525056,0.00018188,42774.0,42769.0,0.1968]
[1644212525454,0.0422455,42777.0,42769.0,0.1968]
[1644212525655,0.0422455,42777.0,42769.0,0.1468]
[1644212525855,0.0422455,42777.0,42769.0,0.0468]
[1644212526056,0.5069,42779.0,42769.0,0.0968]
[1644212526259,0.029,42777.0,42770.0,0.34737799]
[1644212526458,0.029,42777.0,42771.0,0.0968]
[1644212526662,0.029,42777.0,42774.0,0.05]
[1644212526858,0.029,42777.0,42775.0,0.39184028]
[1644212527058,0.029,42777.0,42776.0,0.89763393]
[1644212527258,0.029,42777.0,42776.0,1.08588609]
[1644212527457,0.3988,42791.0,42776.0,0.80888809]
[1644212527458,0.00028392,42790.0,42776.0,0.80888809]
[1644212527659,0.39908392,42791.0,42785.0,0.05]
[1644212528014,0.5766,42799.0,42779.0,0.05842366]
[1644212528015,0.00028392,42790.0,42789.0,0.376998]
[1644212528211,0.04928392,42791.0,42790.0,0.326998]
[1644212528409,0.049,42791.0,42790.0,0.44137233]
[1644212528610,0.049,42791.0,42790.0,0.373798]
[1644212529214,0.30515665,42791.0,42790.0,0.373798]
[1644212529411,0.75,42790.0,42783.0,0.05]
[1644212529612,0.326891,42789.0,42779.0,0.0468]
[1644212529812,0.06666364,42784.0,42776.0,0.55]
[1644212530012,0.06666364,42784.0,42778.0,0.326891]
[1644212530211,0.06666364,42784.0,42775.0,0.05]
[1644212530411,0.32242012,42784.0,42775.0,0.05]
[1644212530613,0.06666364,42784.0,42775.0,0.05]
[1644212530813,0.06666364,42784.0,42776.0,0.326891]
[1644212531219,0.00063989,42782.0,42776.0,0.376891]
[1644212531769,0.00063989,42782.0,42778.0,0.326891]
[1644212532160,0.029,42782.0,42777.0,0.05]
[1644212532562,0.029,42782.0,42780.0,0.05]
[1644212532563,0.02963989,42782.0,42780.0,0.05]
[1644212532761,0.02963989,42782.0,42781.0,0.63277868]
[1644212532962,0.02963989,42782.0,42781.0,0.72957868]
[1644212533461,0.21289267,42792.0,42781.0,0.72957868]
[1644212533462,0.00028392,42785.0,42782.0,0.06938031]
[1644212533664,0.00028392,42791.0,42784.0,0.05]
[1644212533864,0.29260631,42792.0,42785.0,0.0468]
[1644212534061,0.00028392,42791.0,42785.0,0.0468]
[1644212534275,0.07971364,42792.0,42785.0,0.0468]
[1644212534461,0.00028392,42791.0,42785.0,0.0468]
[1644212534762,0.00063989,42791.0,42785.0,0.0468]
[1644212534961,0.00092381,42791.0,42785.0,0.0468]
[1644212535907,0.01,42809.0,42786.0,0.75]
[1644212536214,0.01255845,42809.0,42799.0,0.45]
[1644212536410,0.01255845,42809.0,42806.0,0.376891]
[1644212536711,0.01255845,42809.0,42806.0,0.83807779]
[1644212536712,0.00028323,42808.0,42806.0,0.83807779]
[1644212536912,0.00028316,42809.0,42808.0,0.19555678]
[1644212537107,0.00028316,42809.0,42808.0,0.373691]
[1644212537311,0.26677934,42811.0,42808.0,0.0468]
[1644212537509,0.26199156,42809.0,42808.0,0.0468]
[1644212537707,0.26199156,42809.0,42796.0,0.05]
[1644212537708,0.00019256,42809.0,42800.0,0.0468]
[1644212537908,0.00019256,42809.0,42796.0,0.05]
[1644212538107,0.08687501,42801.0,42796.0,0.05]
[1644212538307,0.19133284,42798.0,42797.0,0.326891]
[1644212538510,0.00028316,42804.0,42793.0,0.0468]
[1644212538706,0.00028316,42803.0,42793.0,0.0468]
[1644212538907,0.35035276,42807.0,42793.0,0.0468]
[1644212539107,0.00028316,42806.0,42796.0,0.23930029]
[1644212539356,0.26319089,42804.0,42796.0,0.23930029]
[1644212539563,0.28820893,42803.0,42794.0,0.058409]
[1644212539856,0.28820893,42803.0,42799.0,0.00070268]
[1644212539857,0.28849209,42803.0,42799.0,0.00070268]
[1644212540156,0.01928316,42803.0,42799.0,0.00070268]
[1644212540355,0.308446,42803.0,42799.0,0.00070268]
[1644212540757,0.07084477,42801.0,42794.0,0.39458954]
[1644212540956,0.07084477,42801.0,42799.0,0.00070268]
[1644212541158,0.28283435,42800.0,42799.0,0.00070268]
[1644212541957,0.28283435,42800.0,42790.0,0.116817]
[1644212541958,0.60972535,42800.0,42790.0,0.116817]
[1644212542163,0.29883435,42800.0,42797.0,0.00067974]
[1644212542459,0.326891,42799.0,42797.0,0.00067974]
[1644212542657,0.55974954,42798.0,42797.0,0.00067974]
[1644212542858,0.65974954,42798.0,42797.0,0.00067974]
[1644212543106,0.65974954,42798.0,42781.0,0.22000729]
[1644212543107,0.06677918,42787.0,42781.0,0.22000729]
[1644212543307,0.06677918,42787.0,42785.0,0.00271972]
[1644212543707,0.25927194,42791.0,42785.0,0.00271972]
[1644212544107,0.27327194,42791.0,42785.0,0.00271972]
[1644212544310,0.27327194,42791.0,42781.0,0.05]
[1644212544509,0.27327194,42791.0,42786.0,0.00067988]
[1644212545007,0.06349487,42788.0,42786.0,0.00067988]
[1644212545509,0.06349487,42788.0,42779.0,0.42471084]
[1644212545709,0.06349487,42788.0,42785.0,0.00070285]
[1644212546108,0.13249487,42788.0,42785.0,0.00070285]
[1644212546771,0.13249487,42788.0,42779.0,0.42471084]
[1644212546963,0.13249487,42788.0,42784.0,0.00070285]
[1644212547365,0.06349487,42788.0,42784.0,0.00070285]
[1644212547765,0.6316542,42793.0,42784.0,0.05070285]
[1644212547964,0.6316542,42793.0,42784.0,0.00070286]
[1644212548165,0.087,42788.0,42784.0,0.00070286]
[1644212548967,0.087,42788.0,42784.0,0.108419]
[1644212549266,0.087,42788.0,42784.0,0.10912186]
[1644212549466,0.26018721,42792.0,42784.0,0.20912186]
[1644212550166,0.27618721,42792.0,42784.0,0.106]
[1644212550366,0.27618721,42792.0,42786.0,0.00070283]
[1644212550613,0.07506298,42791.0,42786.0,0.00070283]
[1644212551413,0.07506298,42791.0,42780.0,0.1]
[1644212551613,0.07506298,42791.0,42786.0,0.00070283]
[1644212551813,0.07534623,42791.0,42786.0,0.00070283]
[1644212552217,0.08834623,42791.0,42786.0,0.00070283]
[1644212552614,0.08834623,42791.0,42781.0,0.108428]
[1644212552913,0.08834623,42791.0,42786.0,0.00070283]
[1644212553514,0.07534623,42791.0,42786.0,0.00070283]
[1644212553814,0.07534623,42791.0,42781.0,0.108428]
[1644212554115,0.09234623,42791.0,42786.0,0.00070283]
[1644212554360,0.01728325,42791.0,42786.0,0.00070283]
[1644212554561,0.19683393,42790.0,42786.0,0.00070283]
[1644212554762,0.63884619,42789.0,42786.0,0.00070283]
[1644212555259,0.31195519,42789.0,42785.0,0.00070284]
[1644212555459,0.08379007,42786.0,42785.0,0.00070284]
[1644212555960,0.36078569,42786.0,42785.0,0.00070284]
[1644212556167,0.70196539,42786.0,42785.0,0.00070284]
[1644212556362,0.70504368,42786.0,42778.0,0.36525692]
[1644212556564,0.37815268,42786.0,42783.0,0.00066596]
[1644212556763,0.19194855,42784.0,42783.0,0.00066596]
[1644212556961,0.46814833,42784.0,42783.0,0.00066596]
[1644212557162,0.27619978,42784.0,42783.0,0.00066596]
[1644212557465,0.27619978,42784.0,42780.0,0.05]
[1644212557663,0.26750398,42785.0,42781.0,0.00063999]
[1644212557861,0.08379007,42786.0,42781.0,0.00063999]
[1644212558317,0.25649846,42785.0,42781.0,0.00063999]
[1644212558518,0.52424125,42785.0,42781.0,0.00063999]
[1644212558717,0.52424125,42785.0,42777.0,0.05]
[1644212558918,0.52424125,42785.0,42781.0,0.00063999]
[1644212559919,0.52424125,42785.0,42780.0,0.05]
[1644212560124,0.52424125,42785.0,42781.0,0.00063999]
[1644212560125,0.50424125,42785.0,42781.0,0.00063999]
[1644212560319,0.52124125,42785.0,42781.0,0.00063999]
[1644212561123,0.52124125,42785.0,42780.0,0.05]
[1644212561323,0.52124125,42785.0,42781.0,0.00062405]
[1644212561521,0.50424125,42785.0,42781.0,0.00062405]
[1644212561763,0.83251074,42785.0,42781.0,0.00062405]
[1644212561958,0.50424125,42785.0,42781.0,0.00062405]
[1644212562158,0.53024125,42785.0,42781.0,0.00062405]
[1644212562359,0.53024125,42785.0,42777.0,0.058433]
[1644212562558,0.53024125,42785.0,42781.0,0.00011475]
[1644212562957,0.53010761,42785.0,42781.0,0.00011475]
[1644212563158,0.29374279,42785.0,42781.0,0.00011475]
[1644212563559,0.119,42788.0,42777.0,0.29559605]
[1644212563761,0.11928325,42788.0,42778.0,0.05]
[1644212564258,0.20091476,42787.0,42778.0,0.05]
[1644212564459,0.21767941,42788.0,42778.0,0.05]
[1644212564658,0.13728325,42788.0,42778.0,0.05]
[1644212564859,0.13728325,42788.0,42781.0,0.058428]
[1644212565060,0.01828325,42788.0,42781.0,0.058428]
[1644212565264,0.01828325,42788.0,42781.0,0.108428]
[1644212565516,0.00028325,42788.0,42782.0,0.11684789]
[1644212565811,0.1183,42800.0,42787.0,0.07416184]
[1644212566014,0.00028327,42788.0,42787.0,0.07416184]
[1644212566210,0.02828327,42788.0,42787.0,0.45105284]
[1644212566411,0.028,42788.0,42787.0,0.45105284]
[1644212566613,0.028,42788.0,42787.0,0.376891]
[1644212567411,0.00028327,42794.0,42787.0,0.49372453]
[1644212567612,0.2702106,42795.0,42787.0,0.155218]
[1644212567816,0.54288044,42795.0,42787.0,0.155218]
[1644212568012,0.2702106,42795.0,42787.0,0.155218]
[1644212568213,0.2902106,42795.0,42787.0,0.155218]
[1644212568615,0.08894871,42791.0,42787.0,0.155218]
[1644212568816,0.08894871,42791.0,42787.0,0.0968]
[1644212569268,0.08894871,42791.0,42787.0,0.0468]
[1644212569663,0.26266539,42788.0,42787.0,0.0468]
[1644212569862,0.26266539,42788.0,42787.0,0.373691]
[1644212570263,0.30166539,42788.0,42787.0,0.326891]
[1644212570467,0.30166539,42788.0,42784.0,0.116838]
[1644212570664,0.53759271,42788.0,42785.0,0.326891]
[1644212570863,0.53759271,42788.0,42784.0,0.116838]
[1644212571363,0.30166539,42788.0,42784.0,0.116838]
[1644212571566,0.26266539,42788.0,42784.0,0.116838]
[1644212571964,0.00028327,42789.0,42784.0,0.116838]
[1644212572164,0.00028327,42790.0,42785.0,0.326891]
[1644212572366,0.019,42788.0,42787.0,0.326891]
[1644212573615,0.00028327,42791.0,42787.0,0.326891]
[1644212573816,0.00028327,42793.0,42787.0,0.326891]
[1644212574017,0.00028327,42793.0,42786.0,0.0468]
[1644212574217,0.012,42791.0,42786.0,0.0468]
[1644212574517,0.012,42791.0,42787.0,0.326891]
[1644212575622,0.00028327,42793.0,42787.0,0.326891]
[1644212575818,0.00028327,42793.0,42787.0,0.05]
[1644212576220,0.013,42793.0,42786.0,0.0468]
[1644212576419,0.01328327,42793.0,42786.0,0.0468]
[1644212577460,0.00028327,42793.0,42786.0,0.0468]
[1644212577661,0.2663194,42794.0,42786.0,0.0468]
[1644212578363,0.2783194,42794.0,42786.0,0.0468]
[1644212579763,0.2663194,42794.0,42786.0,0.0468]
[1644212580364,0.2783194,42794.0,42786.0,0.0468]
[1644212581122,0.2783194,42794.0,42791.0,0.05]
[1644212581123,0.01228327,42794.0,42791.0,0.05]
[1644212581317,0.012,42794.0,42792.0,0.36126039]
[1644212581523,0.012,42794.0,42793.0,0.65676904]
[1644212581717,0.012,42794.0,42793.0,0.70356904]
[1644212581917,0.012,42794.0,42793.0,0.93291732]
[1644212582116,0.012,42794.0,42793.0,1.00434575]
[1644212582317,0.012,42794.0,42793.0,1.01834575]
[1644212582916,0.012,42794.0,42793.0,0.97452526]
[1644212583317,0.00081042,42801.0,42793.0,0.97452526]
[1644212583318,0.00028327,42798.0,42793.0,0.96052526]
[1644212583517,0.00028327,42800.0,42796.0,0.05]
[1644212583720,0.00081042,42801.0,42797.0,0.0968]
[1644212583919,0.00028327,42800.0,42798.0,0.0468]
[1644212584118,0.00028327,42803.0,42798.0,0.0468]
[1644212584368,0.05952721,42801.0,42798.0,0.0468]
[1644212584569,0.05952721,42801.0,42798.0,0.0968]
[1644212585068,0.059,42801.0,42798.0,0.05]
[1644212585269,0.326891,42800.0,42797.0,0.004]
[1644212586173,0.06730989,42799.0,42797.0,0.004]
[1644212586373,0.261798,42798.0,42797.0,0.004]
[1644212586972,0.33352129,42799.0,42797.0,0.004]
[1644212588216,0.33352129,42799.0,42792.0,0.05]
[1644212588415,0.35980456,42799.0,42792.0,0.05]
[1644212588616,0.35952129,42799.0,42792.0,0.05]
[1644212589619,0.33352129,42799.0,42792.0,0.05]
[1644212590422,0.42652129,42799.0,42792.0,0.05]
[1644212590620,0.16030989,42799.0,42792.0,0.05]
[1644212591623,0.26043224,42797.0,42792.0,0.05]
[1644212592265,0.043,42797.0,42792.0,0.053]
[1644212593665,0.00028327,42800.0,42792.0,0.05]
[1644212593866,0.2529672,42801.0,42792.0,0.05]
[1644212594065,0.06437355,42799.0,42792.0,0.05]
[1644212594865,0.26696207,42798.0,42792.0,0.05]
[1644212595064,0.26724534,42798.0,42792.0,0.05]
[1644212595264,0.26724534,42798.0,42791.0,0.05]
[1644212595514,0.2671821,42798.0,42791.0,0.05]
[1644212596317,0.3691821,42798.0,42791.0,0.05]
[1644212596518,0.10228327,42798.0,42791.0,0.05]
[1644212596719,0.10228327,42798.0,42792.0,0.108411]
[1644212597318,0.102,42798.0,42792.0,0.108411]
[1644212597518,0.00028327,42800.0,42792.0,0.108411]
[1644212597718,0.25296656,42801.0,42792.0,0.108411]
[1644212597918,0.00028327,42800.0,42792.0,0.108411]
[1644212598120,0.25296656,42801.0,42792.0,0.108411]
[1644212598319,0.00028327,42800.0,42792.0,0.108411]
[1644212598522,0.42541209,42801.0,42792.0,0.108411]
[1644212598720,0.00028327,42800.0,42792.0,0.108411]
[1644212598921,0.42541209,42801.0,42792.0,0.108411]
[1644212599122,0.00028327,42800.0,42792.0,0.108411]
[1644212599363,0.42541209,42801.0,42792.0,0.108411]
[1644212599569,0.00028327,42800.0,42792.0,0.108411]
[1644212599764,0.38541209,42801.0,42793.0,0.05]
[1644212599964,0.00028327,42800.0,42793.0,0.05]
[1644212600165,0.38541209,42801.0,42793.0,0.05]
[1644212600365,0.47141209,42801.0,42793.0,0.05]
[1644212600767,0.47088113,42801.0,42793.0,0.05]
[1644212601067,0.42141191,42801.0,42793.0,0.05]
[1644212601268,0.42141191,42801.0,42792.0,0.108411]
[1644212601467,0.42141191,42801.0,42793.0,0.05]
[1644212601468,0.47141191,42801.0,42793.0,0.05]
[1644212601665,0.38541191,42801.0,42793.0,0.05]
[1644212602072,0.38488113,42801.0,42792.0,0.108411]
[1644212602268,0.38541191,42801.0,42792.0,0.108411]
[1644212602468,0.47241191,42801.0,42792.0,0.108411]
[1644212603113,0.47188113,42801.0,42792.0,0.108411]
[1644212603613,0.05081405,42801.0,42792.0,0.108411]
[1644212603813,0.00053078,42801.0,42792.0,0.108411]
[1644212604413,0.093,42801.0,42792.0,0.108411]
[1644212604615,0.17042388,42801.0,42792.0,0.108411]
[1644212604813,0.17070715,42801.0,42792.0,0.108411]
[1644212605413,0.09384051,42801.0,42792.0,0.108411]
[1644212605613,0.00028327,42801.0,42792.0,0.108411]
[1644212605814,0.00084051,42801.0,42792.0,0.108411]
[1644212606414,0.06910802,42800.0,42792.0,0.108411]
[1644212606771,0.06939129,42800.0,42792.0,0.108411]
[1644212607567,0.54631231,42799.0,42792.0,0.108411]
[1644212607764,0.23594792,42796.0,42792.0,0.05]
[1644212608164,0.19168261,42795.0,42791.0,0.05]
[1644212608565,0.19196588,42795.0,42791.0,0.05]
[1644212609365,0.08263649,42793.0,42791.0,0.05]
[1644212609767,0.07996422,42793.0,42791.0,0.05]
[1644212610181,0.19514315,42792.0,42785.0,0.17656827]
[1644212610367,0.12996422,42793.0,42785.0,0.058428]
[1644212610368,0.18996746,42791.0,42785.0,0.058428]
[1644212611222,0.39463551,42793.0,42785.0,0.058428]
[1644212611622,0.326891,42792.0,42785.0,0.058428]
[1644212612327,0.095,42792.0,42785.0,0.058428]
[1644212613628,0.00028327,42795.0,42785.0,0.058428]
[1644212613827,0.23594792,42796.0,42785.0,0.058428]
[1644212614028,0.00028327,42795.0,42785.0,0.058428]
[1644212614272,0.22004384,42795.0,42785.0,0.058428]
[1644212614565,0.22032711,42795.0,42785.0,0.058428]
[1644212615065,0.06315713,42791.0,42785.0,0.058428]
[1644212616467,0.10815713,42791.0,42785.0,0.059428]
[1644212617268,0.10815713,42791.0,42777.0,0.0676632]
[1644212617269,0.75,42790.0,42777.0,0.0676632]
[1644212617476,0.04761766,42788.0,42774.0,0.225231]
[1644212617671,1.8771992,42789.0,42773.0,1.0]
[1644212617672,0.04761766,42785.0,42773.0,1.0]
[1644212617872,0.04761766,42780.0,42770.0,0.00020179]
[1644212618125,0.9876366,42779.0,42766.0,0.0004]
[1644212618325,0.45632458,42767.0,42766.0,0.0004]
[1644212618522,0.96648333,42767.0,42766.0,0.0004]
[1644212618722,0.89327637,42767.0,42766.0,0.0004]
[1644212618923,0.05,42767.0,42766.0,0.0004]
[1644212619121,0.326891,42771.0,42766.0,0.0004]
[1644212619624,0.376891,42771.0,42766.0,0.0004]
[1644212619822,0.37178024,42772.0,42766.0,0.26634825]
[1644212620026,0.32178024,42772.0,42766.0,0.26634825]
[1644212620322,0.33378024,42772.0,42766.0,0.31634825]
[1644212621526,0.33378024,42772.0,42770.0,0.07477033]
[1644212621777,0.326891,42771.0,42770.0,0.07477033]
[1644212622369,0.340891,42771.0,42770.0,0.07477033]
[1644212622573,0.61372699,42771.0,42770.0,0.07477033]
[1644212622771,0.340891,42771.0,42770.0,0.07477033]
[1644212623071,0.014,42771.0,42770.0,0.07477033]
[1644212623372,0.340891,42771.0,42770.0,0.07477033]
[1644212623770,0.326891,42771.0,42770.0,0.07477033]
[1644212624372,0.338891,42771.0,42770.0,0.07477033]
[1644212625616,0.326891,42771.0,42768.0,0.00070304]
[1644212625815,0.26642895,42770.0,42768.0,0.00070304]
[1644212626019,0.261798,42769.0,42766.0,0.0004]
[1644212626217,0.261798,42769.0,42767.0,0.00070306]
[1644212626517,0.59050082,42768.0,42767.0,0.00070306]
[1644212626917,0.326891,42768.0,42767.0,0.00070306]
[1644212627121,0.012,42770.0,42767.0,0.00070306]
[1644212627420,0.012,42770.0,42766.0,0.0004]
[1644212627722,0.326891,42775.0,42772.0,0.19601607]
[1644212628122,0.1173,42778.0,42773.0,0.1]
[1644212628320,0.26967213,42785.0,42773.0,0.1]
[1644212628519,0.017,42775.0,42774.0,0.326891]
[1644212629366,0.017,42775.0,42774.0,0.385329]
[1644212629566,0.017,42775.0,42774.0,0.435329]
[1644212629769,0.24076051,42782.0,42774.0,0.108438]
[1644212630067,0.24076051,42782.0,42774.0,0.058438]
[1644212630468,0.25476051,42782.0,42774.0,0.058438]
[1644212631066,0.25476051,42782.0,42776.0,0.00070295]
[1644212631267,0.326891,42781.0,42779.0,0.23641346]
[1644212631468,0.014,42782.0,42779.0,0.23641346]
[1644212631667,0.014,42782.0,42779.0,0.05]
[1644212632066,0.014,42782.0,42778.0,0.12667905]
[1644212632266,0.26700768,42785.0,42778.0,0.12667905]
[1644212632567,0.261798,42781.0,42778.0,0.05]
[1644212632766,0.5104313,42781.0,42777.0,0.05913695]
[1644212633235,0.018,42782.0,42777.0,0.05913695]
[1644212633236,0.018,42782.0,42780.0,0.05]
[1644212633437,0.018,42782.0,42781.0,0.373691]
[1644212633735,0.26882955,42791.0,42781.0,0.0968]
[1644212633940,0.00028327,42795.0,42790.0,0.05]
[1644212634138,0.00028327,42796.0,42794.0,0.05]
[1644212634335,0.00028327,42804.0,42795.0,0.80467781]
[1644212634535,0.5419,42819.0,42799.0,0.05]
[1644212634536,0.00028327,42803.0,42799.0,0.05]
[1644212634741,0.00028327,42804.0,42800.0,0.35052531]
[1644212634940,0.7599,42818.0,42801.0,0.326891]
[1644212634941,0.00028327,42807.0,42801.0,0.326891]
[1644212635135,0.00028327,42811.0,42802.0,0.0468]
[1644212635335,0.24681146,42807.0,42803.0,0.058399]
[1644212635537,0.21279671,42809.0,42804.0,0.0468]
[1644212635735,0.00028327,42811.0,42804.0,0.0468]
[1644212635935,0.30761197,42813.0,42804.0,0.0468]
[1644212636535,0.22057509,42810.0,42804.0,0.0468]
[1644212636970,0.22057509,42810.0,42804.0,0.11652854]
[1644212637170,0.00063527,42809.0,42804.0,0.11652854]
[1644212637370,0.00091854,42809.0,42804.0,0.11652854]
[1644212637771,0.00063527,42809.0,42808.0,0.25324603]
[1644212638074,0.00028327,42812.0,42804.0,0.11652854]
[1644212638271,0.00028327,42810.0,42804.0,0.11652854]
[1644212638471,0.02,42809.0,42804.0,0.11652854]
[1644212639071,0.02,42809.0,42804.0,0.0468]
[1644212639673,0.326891,42808.0,42804.0,0.0468]
[1644212639873,0.32717427,42808.0,42804.0,0.0468]
[1644212640522,0.35317427,42808.0,42804.0,0.0468]
[1644212640726,0.02663527,42808.0,42804.0,0.0468]
[1644212641523,0.02691854,42808.0,42804.0,0.0468]
[1644212641825,0.00028327,42812.0,42804.0,0.0468]
[1644212642024,0.00063527,42808.0,42804.0,0.0468]
[1644212642623,0.00091854,42808.0,42804.0,0.0468]
[1644212643023,0.00028327,42808.0,42804.0,0.0468]
[1644212643231,0.023,42812.0,42807.0,0.05]
[1644212643232,0.00028327,42811.0,42807.0,0.05]
[1644212643428,0.023,42812.0,42807.0,0.05]
[1644212643429,0.023,42812.0,42810.0,0.05]
[1644212643630,0.00254068,42815.0,42812.0,0.45]
[1644212643828,0.00254068,42815.0,42814.0,0.05]
[1644212644027,0.00254068,42815.0,42814.0,1.008691]
[1644212644285,0.22194287,42820.0,42814.0,0.91315218]
[1644212644476,0.00028371,42819.0,42814.0,0.28835218]
[1644212644678,0.22222658,42820.0,42814.0,0.28835218]
[1644212644874,0.32717471,42819.0,42814.0,0.057]
[1644212645074,0.326891,42819.0,42814.0,0.057]
[1644212645277,0.6916579,42819.0,42814.0,0.007]
[1644212645478,0.6916579,42819.0,42801.0,0.34190419]
[1644212645479,0.37002198,42810.0,42801.0,0.058401]
[1644212645676,0.326891,42808.0,42798.0,0.05]
[1644212645878,0.0468,42807.0,42798.0,0.05]
[1644212646077,0.87424254,42806.0,42789.0,0.05]
[1644212646278,0.585,42803.0,42787.0,0.12946602]
[1644212646475,0.585,42798.0,42784.0,0.1]
[1644212646677,0.585,42798.0,42784.0,0.05]
[1644212646678,0.34024243,42797.0,42784.0,0.05]
[1644212646974,0.31314987,42797.0,42796.0,0.26645535]
[1644212647174,0.50756514,42797.0,42796.0,0.26645535]
[1644212647575,0.50756514,42797.0,42790.0,0.0691066]
[1644212647775,0.32689,42796.0,42786.0,0.05]
[1644212648017,0.32689,42796.0,42790.0,0.00068095]
[1644212648018,0.0468,42795.0,42790.0,0.00068095]
[1644212648217,0.261799,42794.0,42790.0,0.00068095]
[1644212648418,0.0468,42793.0,42790.0,0.00068095]
[1644212648618,0.32689,42792.0,42790.0,0.00068095]
[1644212648818,0.0468,42791.0,42790.0,0.00068095]
[1644212649018,0.0468,42791.0,42789.0,0.35900504]
[1644212649217,0.0468,42791.0,42789.0,0.11936784]
[1644212649618,0.0468,42791.0,42789.0,0.00068096]
[1644212650219,0.0468,42791.0,42789.0,0.05]
[1644212650619,0.0468,42791.0,42790.0,0.07785678]
[1644212651621,0.06220705,42796.0,42790.0,0.07785678]
[1644212651880,0.373691,42795.0,42790.0,0.07785678]
[1644212652080,0.0468,42794.0,42790.0,0.07785678]
[1644212652282,0.0468,42793.0,42790.0,0.07785678]
[1644212653281,0.0468,42793.0,42789.0,0.05066933]
[1644212653882,0.0468,42793.0,42789.0,0.05]
[1644212654081,0.0468,42793.0,42789.0,0.05066934]
[1644212655081,0.0468,42793.0,42789.0,0.05]
[1644212655282,0.0468,42793.0,42789.0,0.05067102]
[1644212656322,0.0468,42793.0,42789.0,0.05]
[1644212656618,0.0468,42793.0,42789.0,0.05067102]
[1644212657420,0.0468,42793.0,42789.0,0.05]
[1644212657618,0.0468,42793.0,42789.0,0.05067102]
[1644212658619,0.0468,42793.0,42789.0,0.05]
[1644212658820,0.0468,42793.0,42789.0,0.05067078]
[1644212659866,0.0468,42793.0,42789.0,0.05]
[1644212660066,0.0468,42793.0,42789.0,0.05067078]
[1644212661070,0.0468,42793.0,42789.0,0.05]
[1644212661270,0.0468,42793.0,42789.0,0.05067078]
[1644212662273,0.0468,42793.0,42789.0,0.05]
[1644212662470,0.0468,42793.0,42789.0,0.05067082]
[1644212663218,0.20596418,42791.0,42789.0,0.05067082]
[1644212663520,0.20596418,42791.0,42788.0,0.24275885]
[1644212663521,0.0468,42790.0,42788.0,0.24275885]
[1644212663720,0.0468,42790.0,42789.0,0.00067082]
[1644212663920,0.373691,42790.0,42789.0,0.00067082]
[1644212664122,0.55117102,42790.0,42789.0,0.00067082]
[1644212664328,0.54712286,42790.0,42789.0,0.00067082]
[1644212664523,0.29395978,42790.0,42789.0,0.00067082]
[1644212664722,0.30542395,42790.0,42778.0,2.40113255]
[1644212664922,0.326923,42789.0,42787.0,0.00067083]
[1644212665122,0.0468,42788.0,42787.0,0.00067083]
[1644212665322,0.22883,42788.0,42787.0,0.00067083]
[1644212665921,0.20251253,42784.0,42781.0,0.05]
[1644212666122,0.0468,42785.0,42779.0,0.07876455]
[1644212667269,0.0468,42785.0,42780.0,0.00067033]
[1644212668271,0.0468,42785.0,42779.0,0.12876455]
[1644212668572,0.1222,42793.0,42779.0,0.12876455]
[1644212668573,0.1222,42793.0,42785.0,0.25111483]
[1644212668776,0.1222,42793.0,42782.0,0.05]
[1644212668777,0.0468,42792.0,42780.0,0.00067032]
[1644212669371,0.0468,42792.0,42779.0,0.17876455]
[1644212669574,0.0468,42792.0,42784.0,0.00067954]
[1644212669575,0.35932914,42787.0,42784.0,0.00067954]
[1644212669774,0.20423256,42786.0,42784.0,0.00067954]
[1644212670617,0.20423256,42786.0,42782.0,0.25344168]
[1644212670819,0.20423256,42786.0,42783.0,0.00067955]
[1644212671223,0.58291947,42785.0,42783.0,0.00067955]
[1644212671419,0.26412621,42784.0,42783.0,0.00067955]
[1644212671618,0.44615621,42784.0,42783.0,0.00067955]
[1644212671818,0.44615621,42784.0,42776.0,0.05]
[1644212672019,0.26412621,42784.0,42781.0,0.00067957]
[1644212672221,0.326923,42783.0,42781.0,0.00067957]
[1644212673020,0.326923,42783.0,42776.0,0.25397839]
[1644212673223,0.326923,42783.0,42780.0,0.00066897]
[1644212674276,0.326923,42783.0,42776.0,0.33054401]
[1644212674471,0.326923,42783.0,42779.0,0.00066897]
[1644212675472,0.0468,42785.0,42776.0,0.33054401]
[1644212675671,0.0468,42785.0,42779.0,0.00066898]